bitfinex/quotes_ETHUSD_20240819
["timestamp","ask_amount","ask_price","bid_price","bid_amount"]
[1724033604504,2.5751,2635.7,2635.5,1.62]
[1724033604706,0.05809538,2635.6,2635.5,1.62]
[1724033605316,0.05809538,2635.6,2635.3,1.62]
[1724033606643,2.2803,2635.5,2634.8,1.32656501]
[1724033606806,2.2803,2635.3,2634.9,0.83638716]
[1724033607008,2.2803,2635.3,2634.8,1.62]
[1724033607009,0.22803,2635.2,2634.8,1.62]
[1724033607207,0.28578789,2635.2,2634.8,1.62]
[1724033607440,0.05775789,2635.2,2634.8,1.62]
[1724033607638,4.93655,2635.3,2634.8,1.62]
[1724033607846,0.05767588,2635.1,2634.8,1.62]
[1724033608042,4.93655,2635.3,2634.8,1.62]
[1724033608248,0.05759386,2635.0,2634.8,1.62]
[1724033608429,4.93655,2635.3,2634.8,1.62]
[1724033608633,2.65647,2635.1,2634.5,2.65699]
[1724033608834,2.65647,2635.1,2634.6,2.45642123]
[1724033608835,2.4654,2635.0,2634.6,2.45642123]
[1724033609149,2.52299386,2635.0,2634.6,1.62]
[1724033609344,3.03518086,2635.0,2634.6,1.62]
[1724033610532,5.69179086,2635.0,2634.3,3.49369464]
[1724033610732,2.4397,2634.9,2634.3,3.49372118]
[1724033610934,2.49735959,2634.9,2634.3,3.49372118]
[1724033611140,3.28417894,2634.9,2634.3,2.65718]
[1724033611614,5.94087894,2634.9,2634.3,2.65718]
[1724033612616,3.28417894,2634.9,2634.3,2.65718]
[1724033612829,2.49735959,2634.9,2634.3,2.65718]
[1724033613042,2.4397,2634.9,2634.3,2.65718]
[1724033613753,2.4397,2634.9,2634.4,2.65711]
[1724033614110,0.05754801,2634.8,2634.4,2.65711]
[1724033614547,0.05754801,2634.8,2634.3,2.65718]
[1724033614548,0.05754801,2634.8,2634.3,5.31435]
[1724033614728,0.05754801,2634.8,2634.5,2.65702]
[1724033617482,0.05754801,2634.8,2634.3,2.65717]
[1724033617610,0.05754801,2634.8,2634.3,5.31435]
[1724033617811,0.05754801,2634.8,2634.3,2.65717]
[1724033619251,3.22973681,2634.8,2634.2,5.65728]
[1724033619450,2.2809,2634.7,2634.2,5.65728]
[1724033619627,2.33833751,2634.7,2634.2,5.65728]
[1724033620744,5.81190414,2634.7,2634.1,2.6574]
[1724033621481,2.4486,2634.6,2633.9,2.65762]
[1724033621767,5.10575,2634.4,2633.9,2.65758]
[1724033622064,0.05728824,2634.3,2633.9,2.65758]
[1724033623963,0.05728824,2634.3,2633.7,5.3156]
[1724033624267,2.3451,2634.2,2633.8,3.0]
[1724033624448,0.24023882,2634.1,2633.5,2.65803]
[1724033624634,2.3451,2634.0,2633.5,2.65803]
[1724033624836,2.40175968,2634.0,2633.5,2.65803]
[1724033625966,2.40175968,2634.0,2633.6,2.65793]
[1724033626461,2.40175968,2634.0,2633.8,2.65768]
[1724033626663,0.05665968,2634.0,2633.8,2.65768]
[1724033626866,2.4056,2634.2,2633.8,2.65768]
[1724033627164,0.05677709,2633.9,2633.8,2.65768]
[1724033627359,2.4056,2634.2,2633.8,2.65768]
[1724033627568,0.05677709,2633.9,2633.8,2.65768]
[1724033628044,2.4056,2634.2,2633.9,2.65761]
[1724033628237,0.05683037,2634.1,2633.9,2.65761]
[1724033628571,7.29,2634.3,2633.9,2.65761]
[1724033628747,2.4343,2634.4,2633.9,2.65761]
[1724033629349,3.99931888,2634.4,2633.9,2.65761]
[1724033630377,0.0569934,2634.3,2633.9,2.65761]
[1724033632578,0.0569934,2634.3,2634.0,1.621]
[1724033636506,0.0569934,2634.3,2633.8,2.65774]
[1724033636507,0.0569934,2634.3,2634.2,1.621]
[1724033642253,0.0569934,2634.3,2634.0,0.83662647]
[1724033642454,0.0569934,2634.3,2634.1,1.621]
[1724033643887,0.57183874,2634.3,2633.7,5.3156]
[1724033644086,0.57183874,2634.3,2634.0,1.621]
[1724033644716,0.0569934,2634.3,2634.2,6.9357]
[1724033645018,2.4232,2634.9,2634.4,2.65711]
[1724033645156,2.4232,2634.9,2634.2,5.11499615]
[1724033645157,2.4232,2634.9,2634.8,1.621]
[1724033645358,2.4232,2635.3,2634.8,1.621]
[1724033645565,2.69084688,2635.3,2634.8,1.621]
[1724033645970,5.34709688,2635.3,2634.8,1.621]
[1724033646427,0.05573405,2635.2,2634.8,1.621]
[1724033646571,0.05573405,2635.2,2634.7,2.65676]
[1724033647529,2.71209405,2635.2,2634.6,2.65688]
[1724033647746,2.4232,2635.1,2634.6,2.65688]
[1724033647948,2.65661,2635.0,2634.2,3.49387655]
[1724033648094,5.07991,2634.9,2634.3,6.49371655]
[1724033648297,5.13541771,2634.9,2634.4,0.83653655]
[1724033648492,5.13541771,2634.9,2634.3,6.49372279]
[1724033648687,2.47870771,2634.9,2634.4,3.49363279]
[1724033648888,2.47870771,2634.9,2634.4,6.15071279]
[1724033649089,2.47870771,2634.9,2634.4,2.65708]
[1724033649440,2.47870771,2634.9,2634.4,3.49358622]
[1724033649594,2.47870771,2634.9,2634.6,2.65688]
[1724033649990,2.4232,2634.9,2634.6,2.65688]
[1724033650321,0.05543371,2634.8,2634.6,2.65688]
[1724033650689,2.4232,2634.9,2634.6,2.65688]
[1724033651137,0.05543371,2634.8,2634.6,2.65688]
[1724033652209,2.3747,2635.1,2634.6,2.65688]
[1724033652538,3.143439,2635.1,2634.6,2.65688]
[1724033652697,0.05553225,2635.0,2634.6,5.31376]
[1724033652899,0.05553225,2635.0,2634.6,2.65688]
[1724033653529,0.05553225,2635.0,2634.6,5.31376]
[1724033653999,0.05553225,2635.0,2634.7,2.65678]
[1724033654151,0.05553225,2635.0,2634.9,2.65664]
[1724033654375,2.3549,2635.4,2634.9,2.65664]
[1724033654512,0.501098,2635.3,2634.9,2.65664]
[1724033657149,0.05586074,2635.2,2634.9,2.65664]
[1724033657521,0.501098,2635.3,2634.9,2.65664]
[1724033657771,0.05577873,2635.1,2634.9,2.65664]
[1724033657929,2.3549,2635.4,2634.9,2.65664]
[1724033658165,0.05569672,2635.0,2634.9,2.65664]
[1724033658457,2.855998,2635.4,2634.7,5.31352]
[1724033658667,2.51029672,2635.0,2634.8,2.65674]
[1724033661616,0.05569672,2635.0,2634.9,2.65664]
[1724033661972,2.4546,2635.3,2634.9,2.65664]
[1724033662280,0.05553993,2635.0,2634.8,2.65668]
[1724033662428,2.4546,2635.3,2634.8,5.31336]
[1724033662783,2.4546,2635.3,2634.8,2.65668]
[1724033663257,0.05570397,2635.2,2634.8,2.65668]
[1724033663437,0.05570397,2635.2,2635.0,5.31308]
[1724033663639,2.4546,2635.3,2635.0,2.65654]
[1724033663839,0.05562195,2635.1,2635.0,2.65654]
[1724033664066,2.4546,2635.3,2635.0,2.65654]
[1724033664223,0.05562195,2635.1,2635.0,2.65654]
[1724033664629,2.4872,2635.6,2635.0,2.65654]
[1724033664868,2.75385133,2635.6,2635.0,2.73243097]
[1724033665068,0.05595397,2635.5,2635.0,2.73243097]
[1724033665289,0.05595397,2635.5,2635.2,2.65633]
[1724033666549,0.05595397,2635.5,2635.3,1.62]
[1724033668344,0.05595397,2635.5,2635.0,2.6565]
[1724033668575,2.4872,2635.3,2634.9,1.62]
[1724033668970,0.05593913,2635.2,2634.9,1.62]
[1724033669174,2.4872,2635.3,2634.9,1.62]
[1724033669376,0.05586807,2635.1,2634.9,1.62]
[1724033669571,2.4872,2635.3,2634.9,1.62]
[1724033669741,0.05578606,2635.0,2634.9,1.62]
[1724033669946,5.657774,2635.3,2634.9,1.62]
[1724033670175,0.05578606,2635.0,2634.9,1.62]
[1724033670373,5.657774,2635.3,2634.9,1.62]
[1724033670598,0.05578606,2635.0,2634.9,1.62]
[1724033671068,5.657774,2635.3,2634.9,1.62]
[1724033671296,0.5657774,2635.2,2634.9,1.62]
[1724033671451,0.62172747,2635.2,2634.9,1.62]
[1724033671801,2.4239,2635.1,2634.9,1.62]
[1724033672291,0.05578606,2635.0,2634.9,1.62]
[1724033672505,0.05578606,2635.0,2634.7,2.45642759]
[1724033672802,0.05578606,2635.0,2634.7,1.62]
[1724033673330,0.05578606,2635.0,2634.7,2.45642276]
[1724033673479,0.62596641,2635.0,2634.7,1.62]
[1724033673683,2.281,2634.9,2634.7,1.62]
[1724033674372,2.281,2634.9,2634.8,0.83644041]
[1724033676210,2.33640837,2634.9,2634.8,0.83644041]
[1724033677106,2.83569621,2634.9,2634.7,1.62]
[1724033677319,2.83569621,2634.9,2634.4,2.65714]
[1724033677509,5.49235621,2634.9,2634.6,1.62]
[1724033677817,5.49235621,2634.9,2634.7,0.83650536]
[1724033677977,5.49235621,2634.9,2634.6,1.62]
[1724033677978,0.54923562,2634.8,2634.6,1.62]
[1724033678178,0.54923562,2634.8,2634.7,0.83649886]
[1724033678422,2.83569621,2634.9,2634.7,0.83649886]
[1724033678581,2.83569621,2634.9,2634.6,1.62]
[1724033678779,2.83569621,2634.9,2634.7,0.83649393]
[1724033678985,2.33640837,2634.9,2634.8,1.62]
[1724033679909,0.05540837,2634.9,2634.8,1.62]
[1724033680114,4.92717,2635.1,2634.8,1.62]
[1724033680314,0.0554229,2634.9,2634.8,1.62]
[1724033680618,1.221717,2635.0,2634.8,1.62]
[1724033681403,3.878287,2635.0,2634.8,1.62]
[1724033681629,2.4913,2634.9,2634.7,1.62]
[1724033681791,3.3718457,2634.9,2634.7,1.62]
[1724033681983,2.4913,2634.9,2634.7,1.62]
[1724033683387,0.05534086,2634.8,2634.7,1.62]
[1724033683699,0.05534086,2634.8,2634.7,2.45649354]
[1724033685496,5.09767,2635.1,2634.7,2.45648675]
[1724033685832,0.05550602,2635.0,2634.9,1.62]
[1724033686000,0.05550602,2635.0,2634.7,0.8364738]
[1724033686353,0.05550602,2635.0,2634.6,2.65693]
[1724033686354,0.05550602,2635.0,2634.8,1.62]
[1724033686697,0.05550602,2635.0,2634.8,4.27673]
[1724033687208,0.05550602,2635.0,2634.8,4.27668]
[1724033687610,7.29,2635.2,2634.8,4.27668]
[1724033687822,7.29,2635.2,2635.0,1.62]
[1724033688146,2.4412,2635.3,2635.0,1.62]
[1724033689360,5.187543,2635.3,2635.0,1.62]
[1724033689901,7.29,2635.6,2635.2,4.27634]
[1724033689902,2.4412,2635.6,2635.2,4.27634]
[1724033690248,2.4412,2635.6,2635.4,1.62]
[1724033690457,4.96774,2635.8,2635.4,1.62]
[1724033690600,0.05566991,2635.5,2635.4,1.62]
[1724033690798,5.233314,2635.8,2635.4,1.62]
[1724033691053,0.05566991,2635.5,2635.4,2.65608]
[1724033691256,2.312,2636.1,2635.6,2.65592]
[1724033691554,2.81280838,2636.1,2635.8,1.62]
[1724033694350,0.05642523,2636.0,2635.8,1.62]
[1724033699043,0.05642523,2636.0,2635.8,3.891]
[1724033699337,0.04068376,2636.2,2635.8,3.891]
[1724033699659,0.04068376,2636.2,2636.0,1.62]
[1724033700544,0.04068376,2636.2,2636.1,2.65543]
[1724033700944,0.04068376,2636.2,2636.1,7.56586]
[1724033702537,0.04068376,2636.2,2636.1,5.31086]
[1724033702843,0.09496961,2636.2,2636.1,5.31086]
[1724033703014,0.04068376,2636.2,2636.1,2.65543]
[1724033703337,0.09496961,2636.2,2636.1,2.65543]
[1724033703637,0.04068376,2636.2,2636.1,2.65543]
[1724033704847,2.30448376,2636.2,2636.1,1.62]
[1724033705008,2.35876961,2636.2,2636.1,1.62]
[1724033706146,5.01416961,2636.2,2635.8,1.62]
[1724033706508,2.35876961,2636.2,2635.8,1.62]
[1724033707800,2.35876961,2636.2,2636.0,1.62]
[1724033712243,2.3723,2636.1,2635.6,2.65586]
[1724033712530,2.65549,2636.1,2635.6,1.62]
[1724033712698,2.42643213,2636.0,2635.6,1.62]
[1724033713112,2.42643213,2636.0,2635.4,2.65609]
[1724033713113,0.05413213,2636.0,2635.9,2.65563]
[1724033713532,2.41298376,2636.2,2635.8,4.27569]
[1724033713733,0.05413907,2636.0,2635.8,1.62]
[1724033714019,0.0540571,2635.9,2635.8,1.62]
[1724033714182,2.91979614,2636.2,2635.7,2.65582]
[1724033714616,0.05421922,2636.1,2635.7,2.65582]
[1724033714821,2.3723,2636.0,2635.7,2.65582]
[1724033714987,2.42643578,2636.0,2635.7,2.65582]
[1724033717449,2.42643578,2636.0,2635.6,0.83611118]
[1724033717734,2.42643578,2636.0,2635.4,0.83611118]
[1724033717735,2.4058,2635.7,2635.4,0.83611118]
[1724033718038,0.05421053,2635.6,2635.3,0.83611118]
[1724033718558,0.05421053,2635.6,2635.4,0.83611118]
[1724033718712,0.05421053,2635.6,2635.3,2.65623]
[1724033718903,0.05421053,2635.6,2635.4,0.83620535]
[1724033719101,0.05421053,2635.6,2635.4,0.83622064]
[1724033719305,0.56579358,2635.6,2635.3,0.83622064]
[1724033719499,2.4058,2635.5,2635.2,0.83624694]
[1724033719756,2.4058,2635.5,2635.0,2.65652]
[1724033719920,2.4058,2635.5,2635.1,0.83629023]
[1724033719921,0.05403636,2635.4,2635.1,0.83629023]
[1724033720296,0.05403636,2635.4,2635.2,0.83629023]
[1724033720463,0.05403636,2635.4,2635.1,2.65642]
[1724033721600,2.4164,2635.7,2635.3,2.65624]
[1724033721796,2.4164,2635.7,2635.1,2.65638]
[1724033722046,2.4164,2635.7,2635.2,0.83622991]
[1724033722199,2.4164,2635.7,2635.3,3.49244991]
[1724033722400,2.4164,2635.7,2635.4,0.83622991]
[1724033722650,2.4164,2635.7,2635.3,2.65622]
[1724033722851,2.4164,2635.7,2635.4,0.83618598]
[1724033722998,2.4164,2635.7,2635.3,2.65622]
[1724033723203,2.4164,2635.7,2635.4,0.83620083]
[1724033723417,2.4164,2635.7,2635.3,2.65622]
[1724033723705,2.4164,2635.7,2635.4,0.8362106]
[1724033724339,2.4164,2635.7,2635.4,0.83621053]
[1724033725351,0.05417262,2635.6,2635.4,0.83621053]
[1724033725761,0.05417262,2635.6,2635.4,3.49226053]
[1724033725976,0.05417262,2635.6,2635.4,2.65605]
[1724033726133,0.05417262,2635.6,2635.4,3.49226168]
[1724033726318,0.05417262,2635.6,2635.4,0.83621168]
[1724033727618,0.05417262,2635.6,2635.3,2.65616]
[1724033727824,0.05417262,2635.6,2635.4,0.83621157]
[1724033728115,0.05417262,2635.6,2635.3,2.65618]
[1724033728389,0.05417262,2635.6,2635.3,5.31235]
[1724033728516,0.05417262,2635.6,2635.3,2.65617]
[1724033728896,0.05417262,2635.6,2635.5,2.65604]
[1724033729162,2.3015,2635.9,2635.4,0.83617566]
[1724033729669,0.05423123,2635.8,2635.4,0.83617566]
[1724033730318,0.05423123,2635.8,2635.4,0.8361845]
[1724033730529,0.05423123,2635.8,2635.3,5.31234]
[1724033730731,0.05423123,2635.8,2635.4,0.83613954]
[1724033730930,0.05423123,2635.8,2635.5,0.83613954]
[1724033731234,0.05423123,2635.8,2635.4,0.83613954]
[1724033731551,0.05423123,2635.8,2635.5,0.83613954]
[1724033731867,0.05423123,2635.8,2635.5,2.65598]
[1724033731868,2.3328,2635.7,2635.5,2.65598]
[1724033732065,2.38694925,2635.7,2635.5,2.65598]
[1724033732231,2.38694925,2635.7,2635.6,0.83613777]
[1724033733155,0.05414925,2635.7,2635.6,6.14801777]
[1724033733525,2.4589,2636.0,2635.7,2.65574]
[1724033733751,2.4589,2636.0,2635.6,3.49207777]
[1724033733752,2.4589,2636.0,2635.8,3.49184777]
[1724033733954,0.05405645,2635.9,2635.8,2.65571]
[1724033734152,0.05405645,2635.9,2635.8,3.4917741]
[1724033734565,0.05405645,2635.9,2635.8,4.27471]
[1724033734770,2.4589,2636.2,2636.0,2.65547]
[1724033734982,2.4272,2637.1,2636.6,2.65491]
[1724033735134,2.4272,2637.1,2636.9,1.619]
[1724033736675,0.05323385,2637.0,2636.7,2.73059354]
[1724033736978,0.05323385,2637.0,2636.8,2.65465]
[1724033737820,0.05323385,2637.0,2636.8,5.3093]
[1724033738041,0.05323385,2637.0,2636.9,2.65463]
[1724033738541,0.05323385,2637.0,2636.6,2.65488]
[1724033738703,0.05323385,2637.0,2636.5,2.65503]
[1724033738704,2.95580723,2637.0,2636.5,2.65503]
[1724033739038,2.90257338,2637.0,2636.6,3.0]
[1724033739240,2.4272,2636.8,2636.2,2.65527]
[1724033739551,2.4272,2636.8,2636.5,2.65503]
[1724033739845,0.052998,2636.7,2636.5,2.65503]
[1724033740001,2.4272,2636.8,2636.5,2.65503]
[1724033740344,0.05,2638.8,2636.7,2.65481]
[1724033740345,2.4272,2637.1,2636.7,2.65481]
[1724033741003,0.05382698,2637.0,2636.8,2.65473]
[1724033744717,0.05382698,2637.0,2636.8,5.30938]
[1724033744938,0.05382698,2637.0,2636.8,2.65465]
[1724033746498,0.05382698,2637.0,2636.4,9.19318]
[1724033746833,0.30192968,2637.0,2636.5,5.65496]
[1724033747040,0.05382698,2637.0,2636.6,2.65491]
[1724033747998,2.65479,2636.8,2636.2,5.65532]
[1724033748222,2.4801,2636.7,2636.2,5.65532]
[1724033748450,2.53350298,2636.7,2636.2,5.65532]
[1724033748625,2.53350298,2636.7,2636.2,8.31058]
[1724033748833,2.53350298,2636.7,2636.3,2.65519]
[1724033749149,2.53350298,2636.7,2636.4,5.65507]
[1724033750018,2.53350298,2636.7,2636.5,2.655]
[1724033750220,2.53350298,2636.7,2636.4,5.65507]
[1724033750742,2.53350298,2636.7,2636.4,5.65506]
[1724033751374,2.65499,2636.6,2635.8,7.37453465]
[1724033751641,2.65499,2636.6,2635.8,6.53869]
[1724033751642,2.2824,2636.3,2635.8,6.53869]
[1724033752020,2.2824,2636.3,2635.8,9.19435]
[1724033752178,0.05241697,2636.2,2635.8,6.53866]
[1724033752527,2.2824,2636.3,2635.8,6.53866]
[1724033752726,0.05263,2636.1,2635.9,3.0]
[1724033752953,0.0523364,2636.2,2635.9,3.0]
[1724033753160,0.05226209,2636.0,2635.9,3.0]
[1724033753363,2.2824,2636.3,2635.9,3.0]
[1724033753561,0.05226209,2636.0,2635.9,3.0]
[1724033753788,2.2824,2636.3,2635.9,3.0]
[1724033753930,0.05253966,2636.0,2635.9,3.0]
[1724033754126,2.2824,2636.3,2635.9,3.0]
[1724033754330,0.0525371,2636.0,2635.9,3.0]
[1724033754565,2.2824,2636.3,2635.9,3.0]
[1724033754765,0.0525371,2636.0,2635.9,3.0]
[1724033754968,2.2824,2636.3,2635.9,3.0]
[1724033755186,0.0525371,2636.0,2635.6,2.6559]
[1724033755471,2.3231,2635.9,2635.5,6.53899]
[1724033755650,2.37574015,2635.9,2635.5,6.53899]
[1724033756030,2.37574015,2635.9,2635.4,2.65607]
[1724033756031,2.3231,2635.9,2635.4,2.65607]
[1724033756450,0.05263485,2635.8,2635.4,2.65607]
[1724033757666,4.96641,2635.7,2635.1,3.883]
[1724033757872,5.01901829,2635.7,2635.1,3.883]
[1724033758034,5.01901829,2635.7,2635.1,6.53944]
[1724033758233,5.01901829,2635.7,2635.1,2.65644]
[1724033758429,2.36310829,2635.7,2635.1,2.65644]
[1724033758741,2.86500312,2635.7,2635.1,2.65644]
[1724033759638,2.86500312,2635.7,2635.2,2.65633]
[1724033759941,2.36310829,2635.7,2635.2,2.65633]
[1724033760673,2.36310829,2635.7,2635.3,2.6562]
[1724033761090,2.36310829,2635.7,2635.4,2.65613]
[1724033761990,2.36310829,2635.7,2635.5,2.65603]
[1724033762141,2.36310829,2635.7,2635.4,2.65613]
[1724033762142,0.05260829,2635.7,2635.6,2.65594]
[1724033762604,2.4209,2636.0,2635.6,2.65594]
[1724033762749,2.4209,2636.0,2635.8,2.65573]
[1724033762948,0.05224324,2635.9,2635.6,5.31174]
[1724033763252,0.05224324,2635.9,2635.6,2.65587]
[1724033763787,0.05224324,2635.9,2635.7,2.65579]
[1724033763970,0.05224324,2635.9,2635.6,2.65587]
[1724033764172,2.3957,2635.8,2635.5,2.65602]
[1724033764675,0.05211951,2635.7,2635.5,2.65602]
[1724033764877,2.3957,2635.8,2635.3,2.6562]
[1724033765092,0.05204082,2635.6,2635.3,2.6562]
[1724033765288,5.05144,2635.8,2635.3,2.6562]
[1724033765454,0.05203235,2635.5,2635.3,2.6562]
[1724033765652,5.05144,2635.8,2635.3,2.6562]
[1724033765899,2.3957,2635.8,2635.3,2.6562]
[1724033766060,0.05219633,2635.7,2635.3,2.6562]
[1724033766404,2.3957,2635.8,2635.3,2.6562]
[1724033766689,0.05219633,2635.7,2635.3,2.65616]
[1724033766890,2.3957,2635.8,2635.3,2.65616]
[1724033767058,0.05211434,2635.6,2635.3,2.65616]
[1724033767468,2.3957,2635.8,2635.4,2.65608]
[1724033767652,0.05202652,2635.5,2635.4,2.65608]
[1724033767857,2.3957,2635.8,2635.4,2.65608]
[1724033768054,2.3957,2635.8,2635.5,2.65602]
[1724033770296,0.05222998,2635.7,2635.5,2.65602]
[1724033770458,2.3957,2635.8,2635.5,2.65602]
[1724033770664,0.052148,2635.6,2635.5,2.65602]
[1724033770864,2.3957,2635.8,2635.5,2.65602]
[1724033771070,0.052148,2635.6,2635.2,3.0]
[1724033771315,2.900824,2635.8,2635.2,3.0]
[1724033771471,0.05221416,2635.5,2635.2,3.0]
[1724033771669,2.900824,2635.8,2635.2,3.0]
[1724033771670,2.3957,2635.8,2635.2,3.0]
[1724033771869,0.05213217,2635.4,2635.2,3.0]
[1724033772110,2.3957,2635.8,2635.2,3.0]
[1724033772603,2.3957,2635.8,2635.5,2.65596]
[1724033772763,0.05237812,2635.7,2635.5,2.65596]
[1724033773312,0.05236857,2635.6,2635.5,2.65596]
[1724033773618,2.3957,2635.8,2635.5,2.65596]
[1724033775494,2.3957,2635.8,2635.4,2.65612]
[1724033775895,2.3957,2635.8,2635.5,2.65603]
[1724033776189,2.3957,2635.8,2635.5,3.49218388]
[1724033776394,2.3957,2635.8,2635.5,2.65603]
[1724033776702,2.3957,2635.8,2635.5,3.49218388]
[1724033776914,7.61008,2634.9,2634.7,0.78652276]
[1724033777208,7.61008,2634.9,2634.1,2.36491819]
[1724033777209,2.2968,2634.4,2634.2,0.83656773]
[1724033777395,2.2968,2634.4,2633.8,0.83656773]
[1724033777722,2.2968,2634.4,2633.8,0.34943377]
[1724033777866,2.2968,2635.0,2634.1,3.883]
[1724033778094,2.2968,2635.0,2634.0,2.491]
[1724033778095,4.95294,2635.4,2634.5,2.65698]
[1724033778294,2.65638,2635.2,2634.5,2.65698]
[1724033778508,2.65638,2635.2,2634.4,6.54014]
[1724033778683,2.6563,2635.3,2634.5,2.65704]
[1724033778880,2.6563,2635.3,2634.5,5.14804]
[1724033779098,2.6563,2635.3,2634.6,3.0]
[1724033779299,2.65644,2635.1,2634.6,3.0]
[1724033779676,2.65644,2635.1,2634.5,3.0]
[1724033780899,0.05178986,2635.0,2634.5,3.0]
[1724033781284,2.70832986,2635.0,2634.5,3.0]
[1724033781484,0.05178986,2635.0,2634.5,3.0]
[1724033781685,0.05178986,2635.0,2634.5,5.65703]
[1724033782573,0.05178986,2635.0,2633.9,1.18601834]
[1724033782574,7.5919,2634.1,2633.9,1.18601834]
[1724033782819,5.3149,2634.1,2633.9,1.18601834]
[1724033783115,5.36544974,2634.1,2633.9,1.18601834]
[1724033784229,5.90199471,2634.1,2633.9,1.18601834]
[1724033785304,8.55944471,2634.1,2633.9,1.18601834]
[1724033785479,5.90199471,2634.1,2633.9,1.18601834]
[1724033787887,12.44244471,2634.1,2633.9,1.18601834]
[1724033788231,14.92334471,2634.1,2633.9,1.18601834]
[1724033788416,17.95315528,2634.1,2633.9,1.18601834]
[1724033789395,15.29570528,2634.1,2633.9,1.18601834]
[1724033789728,11.38289471,2634.1,2633.9,1.18601834]
[1724033790028,15.26589471,2634.1,2633.9,1.18601834]
[1724033790231,17.92334471,2634.1,2633.9,1.18601834]
[1724033790929,17.92334471,2634.1,2632.8,2.65876]
[1724033790930,2.65755,2634.0,2632.8,2.65876]
[1724033791119,4.44988447,2634.0,2632.9,0.265876]
[1724033791294,2.65812,2633.5,2632.9,0.265876]
[1724033791632,2.7086452,2633.4,2632.9,0.265876]
[1724033791939,0.0504852,2633.4,2632.9,0.265876]
[1724033793130,2.6583,2633.3,2632.6,8.02942]
[1724033793311,2.6583,2633.3,2632.7,5.65886]
[1724033793525,0.05002095,2633.2,2632.7,5.65886]
[1724033793840,2.6583,2633.3,2632.7,5.65886]
[1724033794217,0.05002095,2633.2,2632.7,5.65886]
[1724033794606,2.6583,2633.3,2632.7,5.65886]
[1724033797005,2.6583,2633.3,2632.7,3.0]
[1724033797347,2.6583,2633.3,2632.6,5.02946]
[1724033797670,0.05013194,2633.2,2632.7,3.0]
[1724033798344,2.6583,2633.3,2632.7,3.0]
[1724033798506,0.0501978,2633.1,2632.7,3.0]
[1724033798708,5.31665,2633.3,2632.7,3.0]
[1724033799023,2.65836,2633.2,2632.7,3.0]
[1724033799352,2.7086578,2633.1,2632.7,3.0]
[1724033799570,2.7086578,2633.1,2632.2,2.65933]
[1724033799571,2.65866,2632.9,2632.5,3.0]
[1724033799851,2.65866,2632.9,2632.2,2.268]
[1724033799852,0.05006425,2632.8,2632.2,2.268]
[1724033800712,2.65887,2632.7,2632.0,2.65953]
[1724033800949,2.70883312,2632.7,2632.0,2.65953]
[1724033801211,5.36779312,2632.7,2632.0,2.65953]
[1724033801408,2.70883312,2632.7,2632.0,2.65953]
[1724033801629,5.36776312,2632.7,2632.0,2.65953]
[1724033801841,2.65899,2632.6,2632.0,2.65953]
[1724033802010,2.70885927,2632.6,2632.0,2.65953]
[1724033802225,2.65919,2632.4,2631.9,2.268]
[1724033802403,2.65919,2632.4,2631.9,3.0]
[1724033802606,0.04962277,2632.3,2631.9,3.0]
[1724033802810,2.70896277,2632.3,2631.6,4.92793]
[1724033803050,2.65934,2632.3,2631.6,2.268]
[1724033803210,2.65947,2632.1,2631.6,2.268]
[1724033804322,0.04915465,2632.0,2631.6,3.0]
[1724033804506,2.65947,2632.1,2631.6,3.0]
[1724033804744,0.04906184,2631.9,2631.6,3.0]
[1724033804944,0.04906184,2631.9,2631.3,2.3186]
[1724033804945,2.66309262,2631.9,2631.3,2.3186]
[1724033805240,0.04755442,2631.9,2631.5,2.66005]
[1724033805486,2.65951,2632.1,2631.3,4.9788]
[1724033805689,5.31907,2632.1,2631.3,4.9788]
[1724033805851,0.04783818,2632.0,2631.3,4.9788]
[1724033806049,2.70740818,2632.0,2631.3,4.9788]
[1724033806494,0.04783818,2632.0,2631.6,2.65995]
[1724033806790,2.6594,2632.2,2631.6,2.65995]
[1724033807007,2.65949,2632.1,2631.4,5.66014]
[1724033807291,2.6596,2632.0,2631.4,5.66014]
[1724033807490,2.70721312,2632.0,2631.4,5.66014]
[1724033808764,2.65968,2631.9,2631.4,3.0]
[1724033808971,2.65968,2631.9,2631.3,5.3186]
[1724033809304,3.45158753,2632.2,2631.6,2.65989]
[1724033809305,0.04744687,2631.8,2631.6,2.65989]
[1724033809505,4.94283,2632.3,2631.6,2.65989]
[1724033809664,0.04717696,2631.7,2631.6,8.86148]
[1724033809864,2.54933,2633.3,2632.7,2.65884]
[1724033810095,2.2835,2633.3,2632.7,2.65886]
[1724033810295,0.04645513,2633.2,2632.7,2.65886]
[1724033810518,0.76464051,2633.2,2632.7,2.65886]
[1724033810729,0.04341221,2633.1,2632.7,2.65886]
[1724033811011,0.04341221,2633.1,2632.6,2.65893]
[1724033811209,0.04341221,2633.1,2632.7,2.6588]
[1724033811377,2.65826,2633.3,2632.7,2.6588]
[1724033811715,2.65826,2633.3,2632.7,2.65879]
[1724033811716,0.04349434,2633.2,2632.7,2.65879]
[1724033812166,2.65838,2633.2,2632.5,4.97763]
[1724033812362,2.65838,2633.2,2632.5,4.9776]
[1724033812612,0.04342318,2633.1,2632.5,4.9776]
[1724033812812,0.04342318,2633.1,2632.5,2.3186]
[1724033812980,0.04342318,2633.1,2632.4,2.65915]
[1724033812981,2.65863,2633.0,2632.4,2.65915]
[1724033813181,2.65867,2632.9,2632.3,2.3186]
[1724033813381,0.04325889,2632.9,2632.4,2.65916]
[1724033814002,2.65862,2633.0,2632.4,2.65916]
[1724033814310,0.04312937,2632.9,2632.4,2.65916]
[1724033814506,3.190038,2633.2,2632.4,2.65916]
[1724033814738,0.04304721,2632.8,2632.4,2.65916]
[1724033815019,2.65838,2633.2,2632.6,2.65896]
[1724033815189,0.04298665,2632.7,2632.6,2.65896]
[1724033815372,2.65838,2633.2,2632.6,2.65896]